Workbook

Sheet Orçamento
A1: PLANILHA DE CUSTOS DO VALOR DO ORÇAMENTO DE REFERÊNCIA (PLANILHA RESUMIDA)
A2: ORÇAMENTO DO PROJETO PONTAL - ÁREA SUL SETORES DE COLONIZAÇÃO 3 A 17 E 31 (MANCHA NOVA)
E4: PREÇO | F4: PREÇO
A5: ITEM | B5: DESCRIÇÃO | C5: UNID. | D5: QUANTID. | E5: UNIT. | F5: TOTAL
E6: C/BDI
A8: 1. | B8: SERVIÇOS PRELIMINARES, ADMINISTRAÇÃO LOCAL E MANUTENÇÃO DO CANTEIRO DE OBRAS | F8: =F9+F12+F15 -> 2440576.21
A9: 1.1 | B9: MOBILIZAÇÃO E DESMOBILIZAÇÃO | F9: =SUM(F10:F11) -> 46209.82
A10: 1.1.1 | B10: MOBILIZAÇÃO DE PESSOAL E EQUIPAMENTOS | C10: un | D10: 1 | E10: 23104.91 | F10: =ROUND(+E10*D10,2) -> 23104.91
A11: 1.1.2 | B11: DESMOBILIZAÇÃO DE PESSOAL E EQUIPAMENTOS | C11: un | D11: 1 | E11: 23104.91 | F11: 23104.91
A12: 1.2 | B12: INSTALAÇÃO DE CANTEIRO DE OBRAS E PLACA DA OBRA | F12: =SUM(F13:F14) -> 428017.04
A13: 1.2.1 | B13: INSTALAÇÃO DE CANTEIRO DE OBRAS | C13: m2 | D13: 980 | E13: 427.54 | F13: =ROUND(+E13*D13,2) -> 418989.2
A14: 1.2.2 | B14: PLACA DE OBRA EM CHAPA DE ACO GALVANIZADO | C14: m2 | D14: 24 | E14: 376.16 | F14: =ROUND(+E14*D14,2) -> 9027.84
A15: 1.3 | B15: ADMINISTRAÇÃO LOCAL E MANUTENÇÃO DO CANTEIRO | F15: =SUM(F16:F16) -> 1966349.35
A16: 1.3.1 | B16: ADMINISTRAÇÃO LOCAL E MANUTENÇÃO DO CANTEIRO | C16: un | D16: 1 | E16: 1966349.35 | F16: 1966349.35
A17: 2. | B17: ESTAÇÕES DE PRESSURIZAÇÃO, COM NOVOS MODELOS DE SUBESTAÇÃO | F17: =F18+F60+F65 -> 9030398.9
A18: 2.1 | B18: OBRAS CIVIS | F18: =SUM(F19:F59) -> 2910580.03
A19: 2.1.1 | B19: DESMATAMENTO E LIMPEZA MECANIZADA DE TERRENO COM ARVORES ATE Ø 15CM, UTILIZANDO TRATOR DE ESTEIRAS | C19: m2 | D19: 2687.3 | E19: 0.52 | F19: =ROUND(+E19*D19,2) -> 1397.4
A20: 2.1.2 | B20: LOCAÇÃO DA OBRA - EXECUÇÃO DE GABARITO | C20: m2 | D20: 2687.3 | E20: 4.99 | F20: 13409.63
A21: 2.1.3 | B21: ESC. CARGA TRANSP. MAT 1A CAT DMT 50 A 200M C/E | C21: m3 | D21: 3673 | E21: 4.59 | F21: =ROUND(+E21*D21,2) -> 16859.07
A22: 2.1.4 | B22: ESC. CARGA TRANSP. MAT 2A CAT DMT 800 A 1000M C/E | C22: m3 | D22: 830 | E22: 8.3 | F22: =ROUND(+E22*D22,2) -> 6889
A23: 2.1.5 | B23: ESC. CARGA TRANSP. MAT 3ª CAT DMT 800 A 1000 M | C23: m3 | D23: 3065 | E23: 32.78 | F23: 100470.7
A24: 2.1.6 | B24: MOMENTO EXTRAORDINÁRIO DE TRANSP. DE MAT. DE 1ª E/OU 2ª | C24: m3 x km | D24: 25600 | E24: 1.42 | F24: 36352
A25: 2.1.7 | B25: MOMENTO EXTRAORDINÁRIO DE TRANSP. DE MAT. DE 3ª | C25: m3 x km | D25: 18390 | E25: 2.81 | F25: =ROUND(+E25*D25,2) -> 51675.9
A26: 2.1.8 | B26: REATERRO COMPACTADO MECANICAMENTE, S/ CONTROLE | C26: m3 | D26: 1890 | E26: 19.34 | F26: 36552.6
A27: 2.1.9 | B27: CONFORMACAO GEOMETRICA DE PLATAFORMA PARA EXECUCAO DE REVESTIMENTO PRIMARIO | C27: m2 | D27: 3600 | E27: 0.17 | F27: =ROUND(+E27*D27,2) -> 612
A28: 2.1.10 | B28: REVESTIMENTO PRIMÁRIO C/ MAT. DE JAZIDA, C/T ATE 1000m | C28: m3 | D28: 720 | E28: 14.34 | F28: 10324.8
A29: 2.1.11 | B29: CONCRETO ESTRUTURAL Fck = 20 Mpa, LANÇADO E ADENSADO | C29: m3 | D29: 1793 | E29: 430.31 | F29: 771545.83
A30: 2.1.12 | B30: CONCRETO SIMPLES Fck = 15 Mpa, LANÇADO E ADENSADO | C30: m3 | D30: 100.5 | E30: 348.58 | F30: 35032.29
A31: 2.1.13 | B31: ARMADURA DE AÇO CA 50/60 - MONTAGEM | C31: kg | D31: 127413 | E31: 2.45 | F31: 312161.85
A32: 2.1.14 | B32: FORMA PLANA PARA ESTRUTURAS, EM COMPENSADO PLASTIFICADO DE 12MM, 05 USOS, EXC LUSIVE ESCORAMENTO - REVISADA 07.2015 | C32: m2 | D32: 7143 | E32: 36.95 | F32: 263933.85
A33: 2.1.15 | B33: FORMA TABUA PARA CONCRETO EM FUNDACAO C/ REAPROVEITAMENTO 5X | C33: m2 | D33: 60 | E33: 37.61 | F33: 2256.6
A34: 2.1.16 | B34: CIMBRAMENTO DE MADEIRA COM BARROTES SEÇÃO 6X6CM, PARA ESTRUTURAS ALTAS OU RES ERVATÓRIOS, INCLUSIVE RAMPA EM TÁBUA. | C34: m3 | D34: 573 | E34: 52.48 | F34: 30071.04
A35: 2.1.17 | B35: ALVENARIA BLOCO CONCRETO ESTRUTURAL 19X19X39CM, FBK 8 MPA, ESP = 0,19M, COM ARGAMASSA TRAÇO T5 - 1:2:8 (CIMENTO/CAL/AREIA), JUNTA 2CM | C35: m2 | D35: 1771 | E35: 72.6 | F35: 128574.6
A36: 2.1.18 | B36: ALVENARIA DE ELEMENTO VAZADO DE CONCRETO (20X20X20cm) C/ARG. CIMENTO E AREIA TRAÇO 1:3 | C36: m2 | D36: 190 | E36: 204.06 | F36: 38771.4
A37: 2.1.19 | B37: CHAPISCO APLICADO EM ALVENARIAS E ESTRUTURAS DE CONCRETO INTERNAS, COM COLHER DE PEDREIRO. ARGAMASSA TRAÇO 1:3 COM PREPARO EM BETONEIRA 400L. AF_06/2014 | C37: m2 | D37: 3121.1 | E37: 3.23 | F37: 10081.15
A38: 2.1.20 | B38: (COMPOSIÇÃO REPRESENTATIVA) DO SERVIÇO DE EMBOÇO/MASSA ÚNICA, APLICADO MANUALMENTE, TRAÇO 1:2:8, EM BETONEIRA DE 400L, PAREDES INTERNAS, COM EXECUÇÃO DE TALISCAS, EDIFICAÇÃO HABITACIONAL UNIFAMILIAR (CASAS) E EDIFICAÇÃO PÚBLICA PADRÃO. AF_12/2014 | C38: m2 | D38: 3121.1 | E38: 30.2 | F38: 94257.22
A39: 2.1.21 | B39: APLICAÇÃO MANUAL DE PINTURA COM TINTA LÁTEX ACRÍLICA EM PAREDES, DUAS DEMÃOS. AF_06/2014 | C39: m2 | D39: 3121.1 | E39: 11.92 | F39: 37203.51
A40: 2.1.22 | B40: VERNIZ POLIURETANO BRILHANTE EM CONCRETO OU TIJOLO, TRES DEMAOS | C40: m2 | D40: 3273.1 | E40: 19.91 | F40: 65167.42
A41: 2.1.23 | B41: PINTURA ESMALTE FOSCO, DUAS DEMAOS, SOBRE SUPERFICIE METALICA, INCLUSO UMA DEMAO DE FUNDO ANTICORROSIVO. UTILIZACAO DE REVOLVER ( AR-COMPRIMIDO). | C41: m2 | D41: 630.28 | E41: 19.7 | F41: 12416.52
A42: 2.1.24 | B42: PISO CIMENTADO TRACO 1:3 (CIMENTO E AREIA) ACABAMENTO LISO ESPESSURA 2,5 CM PREPARO MECANICO DA ARGAMASSA | C42: m2 | D42: 1935.5 | E42: 51.13 | F42: 98962.12
A43: 2.1.25 | B43: ARGAMASSA TRAÇO 1:3 (CIMENTO E AREIA MÉDIA) PARA CONTRAPISO, PREPARO MECÂNICO COM BETONEIRA 400 L. AF_06/2014 | C43: m3 | D43: 7.35 | E43: 441.03 | F43: 3241.57
A44: 2.1.26 | B44: PISO DE BORRACHA PASTILHADO, ESPESSURA 7MM, FIXADO COM COLA | C44: m2 | D44: 18 | E44: 165.71 | F44: 2982.78
A45: 2.1.27 | B45: RODAPÉ DE CIMENTO LISO COM 15 cm DE ALTURA | C45: m | D45: 38.5 | E45: 15.84 | F45: 609.84
A46: 2.1.28 | B46: RODAPÉ CIMENTADO TRAÇO T1, H = 7 CM, E = 1,5 CM | C46: m | D46: 700 | E46: 8.09 | F46: 5663
A47: 2.1.29 | B47: TELHAMENTO COM TELHA DE FIBROCIMENTO TIPO CANALETE 49 (ETERNIT OU SIMILAR) | C47: m2 | D47: 1897 | E47: 169.73 | F47: 321977.81
A48: 2.1.30 | B48: PORTA EM CHAPA LISA DE ALUMÍNIO, COR N/P/B, COMUM, DE ABRIR OU CORRER | C48: m2 | D48: 147 | E48: 339.64 | F48: 49927.08
A49: 2.1.31 | B49: JANELA DE ALUMÍNIO MAXIM-AR, FIXAÇÃO COM ARGAMASSA, COM VIDROS, PADRONIZADA. AF_07/2016 | C49: m2 | D49: 94.1 | E49: 737.84 | F49: 69430.74
A50: 2.1.32 | B50: PORTAO EM TELA ARAME GALVANIZADO N.12 MALHA 2" E MOLDURA EM TUBOS DE ACO COM DUAS FOLHAS DE ABRIR, INCLUSO FERRAGENS | C50: m2 | D50: 54 | E50: 1063.86 | F50: =ROUND(+E50*D50,2) -> 57448.44
A51: 2.1.33 | B51: FABRICAÇÃO E MONTAGEM DE APOIOS DE CANTONEIRAS (2" X 2" X 1/4") PARA GRADES TIPO 1 (ALÇAPÃO), COM CHUMBADOR DE EXPANSÃO A CADA 30 cm | C51: m | D51: 129.8 | E51: 71.89 | F51: =ROUND(+E51*D51,2) -> 9331.32
A52: 2.1.34 | B52: FORNECIMENTO E COLOCAÇÃO DE GRADE METÁLICA DE PROTEÇÃO DO POÇO DE SUCÇÃO (ALÇAPÃO) - TIPO 1 (59x59 cm), INCLUSO PINTURA COM FUNDO ANTICORROSIVO TIPO ZARCÃO | C52: un | D52: 55 | E52: 329.8 | F52: 18139
A53: 2.1.35 | B53: FABRICAÇÃO E MONTAGEM DE APOIOS DE CANTONEIRAS (2" X 2" X 1/4") PARA GRADES TIPO 2, COM CHUMBADOR DE VERGALHÃO DE AÇO CA-50 DN 6.3 mm C/10 cm A CADA 30 cm | C53: m | D53: 18 | E53: 57.94 | F53: 1042.92
A54: 2.1.36 | B54: FORNECIMENTO E COLOCAÇÃO DE GRADE METÁLICA DE ACESSO DE SERVIÇO AO POÇO DE BOMBAS - TIPO 2 (90x90 cm), INCLUSO PINTURA COM FUNDO ANTICORROSIVO TIPO ZARCÃO | C54: un | D54: 5 | E54: 744.91 | F54: 3724.55
A55: 2.1.37 | B55: FABRICAÇÃO E MONTAGEM DE APOIOS DE CANTONEIRAS (2" X 2" X 1/4") PARA TAMPAS EM CHAPA XADREZ, COM VERGALHÃO DE AÇO CA-50 DN 6.3 mm E CHUMBADOR DE VERGALHÃO DE AÇO CA-50 DN 6.3 mm C/10 cm A CADA 30 cm | C55: m | D55: 234.4 | E55: 61.12 | F55: 14326.53
A56: 2.1.38 | B56: FORNECIMENTO E MONTAGEM DE TAMPAS EM CHAPA XADREZ | C56: m2 | D56: 102.18 | E56: 589.67 | F56: 60252.48
A57: 2.1.39 | B57: ESCADA TIPO MARINHEIRO EM ACO CA-50 9,52MM INCLUSO PINTURA COM FUNDO ANTICORROSIVO TIPO ZARCAO | C57: m | D57: 120.7 | E57: 70.77 | F57: 8541.94
A58: 2.1.40 | B58: FONECIMENTO E INSTALAÇÃO DE TUBO DRENAGEM DE TRANSFORMADORES, INCLUINDO CONEXÕES | C58: cj | D58: 5 | E58: 76.05 | F58: 380.25
A59: 2.1.41 | B59: GUARDA-CORPO METÁLICO - FORNEC. E INSTAL. | C59: m | D59: 398.8 | E59: 272.27 | F59: 108581.28
A60: 2.2. | B60: FORNECIMENTO DE EQUIPAMENTOS | F60: =+F61 -> 768448.31
A61: 2.2.1 | B61: EQUIPAMENTOS HIDROMECÂNICOS | F61: =SUM(F62:F64) -> 768448.31
A62: 2.2.1.1 | B62: ARMADURA DE AÇO CA 50/60 - FORNECIMENTO DOS MATERIAIS | C62: kg | D62: 127413 | E62: 5.94 | F62: =ROUND(+E62*D62,2) -> 756833.22
A63: 2.2.1.2 | B63: CONJUNTO MOTO-BOMBA SUBMERSÍVEL DE DRENAGEM COMPLETA C/ TUBULAÇÃO DE DRENAGEM - P = 2 cv | C63: cj | D63: 1 | E63: 3908.97 | F63: 3908.97
A64: 2.2.1.3 | B64: JUNTA DE PAPELÃO GRAFITADO PARA FLANGE FACE PLANA (FF) PN-10, D=200MM (DESCAR GA) | C64: cj | D64: 188 | E64: 40.99 | F64: 7706.12
A65: 2.3. | B65: MONTAGEM DOS EQUIPAMENTOS | F65: =+F66+F84 -> 5351370.56
A66: 2.3.1. | B66: EQUIPAMENTOS HIDROMECÂNICOS | F66: =SUM(F67:F83) -> 222002.05
A67: 2.3.1.1 | B67: MONT. CONJ. MOTO-BOMBA VERTICAL TIPO "IN LINE" - POT=50 cv | C67: cj | D67: 16 | E67: 500 | F67: =ROUND(+E67*D67,2) -> 8000
A68: 2.3.1.2 | B68: MONT. CONJ. MOTOBOMBA VERTICAL "IN LINE" POT= 60 hp | C68: cj | D68: 27 | E68: 600 | F68: 16200
A69: 2.3.1.3 | B69: MONT. CONJ. MOTOBOMBA VERTICAL "IN LINE" POT= 75 hp | C69: cj | D69: 12 | E69: 600 | F69: 7200
A70: 2.3.1.4 | B70: MONT. CONJ. MOTO-BOMBA SUBMERSÍVEL POT=2 cv C/TUBULAÇÃO DE DRENAGEM | C70: cj | D70: 11 | E70: 150 | F70: 1650
A71: 2.3.1.5 | B71: MONTAGEM DE TALHA MANUAL COM MONOVIA DE 3,0 ton | C71: un | D71: 11 | E71: 900 | F71: 9900
A72: 2.3.1.6 | B72: MONTAGEM DE TALHA MANUAL COM MONOVIA DE 1,0 ton | C72: un | D72: 11 | E72: 900 | F72: 9900
A73: 2.3.1.7 | B73: MONTAGEM DE GRADE DE PROTEÇÃO | C73: un | D73: 55 | E73: 450 | F73: 24750
A74: 2.3.1.8 | B74: MONTAGEM VÁLVULA BORBOLETA SEM ATUADOR, PN-10, DN=250mm | C74: un | D74: 55 | E74: 350 | F74: 19250
A75: 2.3.1.9 | B75: MONTAGEM VÁLVULA BORBOLETA SEM ATUADOR, PN-10, DN=200mm | C75: un | D75: 55 | E75: 350 | F75: 19250
A76: 2.3.1.10 | B76: MONT. VÁLV. RETENÇÃO C/ DESLOCAMENTO AXIAL, FLANG., DN=200mm, PN-10 | C76: un | D76: 55 | E76: 350 | F76: 19250
A77: 2.3.1.11 | B77: MONT. VENTOSA DE SIMPLES EFEITO, DN=50mm, PN-10 | C77: un | D77: 71 | E77: 100 | F77: 7100
A78: 2.3.1.12 | B78: MONTAGEM DE JUNTA DRESSER, DN=250mm, PN-10 | C78: cj | D78: 55 | E78: 350 | F78: 19250
A79: 2.3.1.13 | B79: MONTAGEM DE JUNTA DRESSER, DN=200mm, PN-10 | C79: cj | D79: 55 | E79: 350 | F79: 19250
A80: 2.3.1.14 | B80: MONTAGEM DOS TUBOS E PEÇAS ESPECIAIS DO BARRILETE | C80: cj | D80: 16 | E80: 1200 | F80: =ROUND(+E80*D80,2) -> 19200
A81: 2.3.1.15 | B81: JATEAMENTO COM AREIA EM ESTRUTURA METALICA | C81: m² | D81: 274.11 | E81: 17.52 | F81: =ROUND(+E81*D81,2) -> 4802.41
A82: 2.3.1.16 | B82: FUNDO PREPARADOR PRIMER A BASE DE EPOXI, PARA ESTRUTURA METALICA, UMA DEMAO, ESPESSURA DE 25 MICRA. | C82: m² | D82: 274.11 | E82: 11.16 | F82: =ROUND(+E82*D82,2) -> 3059.07
A83: 2.3.1.17 | B83: PINTURA EPOXI, DUAS DEMAOS | C83: m² | D83: 274.11 | E83: 51.04 | F83: =ROUND(+E83*D83,2) -> 13990.57
A84: 2.3.2. | B84: EQUIPAMENTOS ELÉTRICOS | F84: =SUM(F85:F135) -> 5129368.51
A85: 2.3.2.1 | B85: ESTAÇÃO DE PRESSURIZAÇÃO EP03
A86: 2.3.2.1.1 | B86: SUBESTAÇÃO REBAIXADORA 225 KVA - 13,8KV / 380-220V | C86: un | D86: 1 | E86: 25525.73 | F86: =ROUND(+E86*D86,2) -> 25525.73
A87: 2.3.2.1.2 | B87: PAINEL DE COMANDO E PROTEÇÃO DE MOTORES CONFORME ESPECIFICAÇÃO TÉCNICA | C87: un | D87: 1 | E87: 222793.27 | F87: 222793.27
A88: 2.3.2.1.3 | B88: SISTEMA DE ATERRAMENTO E SPDA | C88: un | D88: 1 | E88: 14389.99 | F88: 14389.99
A89: 2.3.2.1.4 | B89: ILUMINAÇÃO E TOMADAS DE USO GERAL | C89: un | D89: 1 | E89: 11354.19 | F89: 11354.19
A90: 2.3.2.2 | B90: ESTAÇÃO DE PRESSURIZAÇÃO EP04 E EP05
A91: 2.3.2.2.1 | B91: SUBESTAÇÃO ABRIGADA DE ATÉ 2 X 225KVA - 13,8KV/380-220V | C91: un | D91: 1 | E91: 219759.95 | F91: 219759.95
A92: 2.3.2.2.2 | B92: PAINEL DE COMANDO E PROTEÇÃO DE MOTORES CONFORME ESPECIFICAÇÃO TÉCNICA | C92: un | D92: 2 | E92: 234844.11 | F92: 469688.22
A93: 2.3.2.2.3 | B93: SISTEMA DE ATERRAMENTO E SPDA | C93: un | D93: 1 | E93: 22149.79 | F93: 22149.79
A94: 2.3.2.2.4 | B94: ILUMINAÇÃO E TOMADAS DE USO GERAL | C94: un | D94: 1 | E94: 22708.38 | F94: 22708.38
A95: 2.3.2.3 | B95: ESTAÇÃO DE PRESSURIZAÇÃO EP06
A96: 2.3.2.3.1 | B96: SUBESTAÇÃO REBAIXADORA 225 KVA - 13,8KV / 380-220V | C96: un | D96: 1 | E96: 25525.73 | F96: 25525.73
A97: 2.3.2.3.2 | B97: PAINEL DE COMANDO E PROTEÇÃO DE MOTORES CONFORME ESPECIFICAÇÃO TÉCNICA | C97: un | D97: 1 | E97: 234844.11 | F97: 234844.11
A98: 2.3.2.3.3 | B98: SISTEMA DE ATERRAMENTO E SPDA | C98: un | D98: 1 | E98: 14389.99 | F98: 14389.99
A99: 2.3.2.3.4 | B99: ILUMINAÇÃO E TOMADAS DE USO GERAL | C99: un | D99: 1 | E99: 11354.19 | F99: 11354.19
A100: 2.3.2.4 | B100: ESTAÇÃO DE PRESSURIZAÇÃO EP07 E EP08
A101: 2.3.2.4.1 | B101: SUBESTAÇÃO REBAIXADORA 225 KVA - 13,8KV / 380-220V | C101: un | D101: 2 | E101: 25525.73 | F101: 51051.46
A102: 2.3.2.4.2 | B102: PAINEL DE COMANDO E PROTEÇÃO DE MOTORES CONFORME ESPECIFICAÇÃO TÉCNICA | C102: un | D102: 2 | E102: 240081.26 | F102: 480162.52
A103: 2.3.2.4.3 | B103: SISTEMA DE ATERRAMENTO E SPDA | C103: un | D103: 1 | E103: 22149.79 | F103: 22149.79
A104: 2.3.2.4.4 | B104: ILUMINAÇÃO E TOMADAS DE USO GERAL | C104: un | D104: 1 | E104: 22708.38 | F104: 22708.38
A105: 2.3.2.5 | B105: ESTAÇÃO DE PRESSURIZAÇÃO EP09 E EP10
A106: 2.3.2.5.1 | B106: SUBESTAÇÃO ABRIGADA DE ATÉ 2 X 225KVA - 13,8KV/380-220V | C106: un | D106: 1 | E106: 219759.95 | F106: 219759.95
A107: 2.3.2.5.2 | B107: PAINEL DE COMANDO E PROTEÇÃO DE MOTORES CONFORME ESPECIFICAÇÃO TÉCNICA | C107: un | D107: 2 | E107: 216021.82 | F107: 432043.64
A108: 2.3.2.5.3 | B108: SISTEMA DE ATERRAMENTO E SPDA | C108: un | D108: 1 | E108: 22149.79 | F108: 22149.79
A109: 2.3.2.5.4 | B109: ILUMINAÇÃO E TOMADAS DE USO GERAL | C109: un | D109: 1 | E109: 22708.38 | F109: 22708.38
A110: 2.3.2.6 | B110: ESTAÇÃO DE PRESSURIZAÇÃO EP11 E EP 12
A111: 2.3.2.6.1 | B111: SUBESTAÇÃO ABRIGADA DE ATÉ 2 X 225KVA - 13,8KV/380-220V | C111: un | D111: 1 | E111: 219759.95 | F111: 219759.95
A112: 2.3.2.6.2 | B112: PAINEL DE COMANDO E PROTEÇÃO DE MOTORES CONFORME ESPECIFICAÇÃO TÉCNICA | C112: un | D112: 2 | E112: 240081.26 | F112: 480162.52
A113: 2.3.2.6.3 | B113: SISTEMA DE ATERRAMENTO E SPDA | C113: un | D113: 1 | E113: 22149.79 | F113: 22149.79
A114: 2.3.2.6.4 | B114: ILUMINAÇÃO E TOMADAS DE USO GERAL | C114: un | D114: 1 | E114: 22708.38 | F114: 22708.38
A115: 2.3.2.7 | B115: ESTAÇÃO DE PRESSURIZAÇÃO EP13 E EP14
A116: 2.3.2.7.1 | B116: SUBESTAÇÃO ABRIGADA DE ATÉ 2 X 225KVA - 13,8KV/380-220V | C116: un | D116: 1 | E116: 219759.95 | F116: 219759.95
A117: 2.3.2.7.2 | B117: PAINEL DE COMANDO E PROTEÇÃO DE MOTORES CONFORME ESPECIFICAÇÃO TÉCNICA | C117: un | D117: 1 | E117: 222793.27 | F117: 222793.27
A118: 2.3.2.7.3 | B118: SISTEMA DE ATERRAMENTO E SPDA | C118: un | D118: 1 | E118: 22149.79 | F118: 22149.79
A119: 2.3.2.7.4 | B119: ILUMINAÇÃO E TOMADAS DE USO GERAL | C119: un | D119: 1 | E119: 22708.38 | F119: 22708.38
A120: 2.3.2.8 | B120: ESTAÇÃO DE PRESSURIZAÇÃO EP15
A121: 2.3.2.8.1 | B121: SUBESTAÇÃO REBAIXADORA 225 KVA - 13,8KV / 380-220V | C121: un | D121: 1 | E121: 25525.73 | F121: 25525.73
A122: 2.3.2.8.2 | B122: PAINEL DE COMANDO E PROTEÇÃO DE MOTORES CONFORME ESPECIFICAÇÃO TÉCNICA | C122: un | D122: 1 | E122: 216021.82 | F122: 216021.82
A123: 2.3.2.8.3 | B123: SISTEMA DE ATERRAMENTO E SPDA | C123: un | D123: 1 | E123: 14389.99 | F123: 14389.99
A124: 2.3.2.8.4 | B124: ILUMINAÇÃO E TOMADAS DE USO GERAL | C124: un | D124: 1 | E124: 11354.19 | F124: 11354.19
A125: 2.3.2.9 | B125: ESTAÇÃO DE PRESSURIZAÇÃO EP16 E EP17
A126: 2.3.2.9.1 | B126: SUBESTAÇÃO ABRIGADA DE ATÉ 2 X 225KVA - 13,8KV/380-220V | C126: un | D126: 1 | E126: 219759.95 | F126: 219759.95
A127: 2.3.2.9.2 | B127: PAINEL DE COMANDO E PROTEÇÃO DE MOTORES CONFORME ESPECIFICAÇÃO TÉCNICA | C127: un | D127: 2 | E127: 234844.11 | F127: 469688.22
A128: 2.3.2.9.3 | B128: SISTEMA DE ATERRAMENTO E SPDA | C128: un | D128: 1 | E128: 22149.79 | F128: 22149.79
A129: 2.3.2.9.4 | B129: ILUMINAÇÃO E TOMADAS DE USO GERAL | C129: un | D129: 1 | E129: 22708.38 | F129: 22708.38
A130: 2.3.2.10 | B130: ESTAÇÃO DE PRESSURIZAÇÃO EP31
A131: 2.3.2.10.1 | B131: SUBESTAÇÃO REBAIXADORA 225 KVA - 13,8KV / 380-220V - C/ TRANSFORMADOR | C131: un | D131: 1 | E131: 44906.44 | F131: 44906.44
A132: 2.3.2.10.2 | B132: PAINEL DE COMANDO E PROTEÇÃO DE MOTORES CONFORME ESPECIFICAÇÃO TÉCNICA | C132: un | D132: 1 | E132: 216021.82 | F132: 216021.82
A133: 2.3.2.10.3 | B133: SISTEMA DE ATERRAMENTO E SPDA | C133: un | D133: 1 | E133: 14389.99 | F133: 14389.99
A134: 2.3.2.10.4 | B134: ILUMINAÇÃO E TOMADAS DE USO GERAL | C134: un | D134: 1 | E134: 11354.19 | F134: 11354.19
A135: 2.3.2.11 | B135: PROJETO EXECUTIVO E "AS BUILT", COMISSIONAMENTO E START-UP | C135: un | D135: 1 | E135: 41688.52 | F135: 41688.52
A136: 3. | B136: RESERVATÓRIOS DE SERVIÇO - RS 3 AO 10 E O 26 | F136: =F137+F151 -> 6242091.07
A137: 3.1 | B137: OBRAS CIVIS | F137: =SUM(F138:F150) -> 4137100.88
A138: 3.1.1 | B138: DESMATAMENTO E LIMPEZA MECANIZADA DE TERRENO COM ARVORES ATE Ø 15CM, UTILIZANDO TRATOR DE ESTEIRAS | C138: m2 | D138: 56700 | E138: 0.52 | F138: =ROUND(+E138*D138,2) -> 29484
B139: LOCAÇÃO DE SERVIÇOS DE TERRAPLENAGEM DE OBRAS CIVIS | C139: m2 | D139: 56700 | E139: 1.48 | F139: =ROUND(+E139*D139,2) -> 83916
A140: 3.1.2 | B140: COMPACTACAO MECANICA C/ CONTROLE DO GC>=95% DO PN (AREAS) (C/MONIVELADORA 140 HP E ROLO COMPRESSOR VIBRATORIO 80 HP) | C140: m3 | D140: 76770 | E140: 6.54 | F140: 502075.8
A141: 3.1.3 | B141: ESC. CARGA TRANSP. MAT 1A CAT DMT 50 A 200M C/E | C141: m3 | D141: 22770 | E141: 4.59 | F141: 104514.3
A142: 3.1.4 | B142: ESC. CARGA TRANSP. MAT 3ª CAT DMT 800 A 1000 M | C142: m3 | D142: 13293 | E142: 32.78 | F142: 435744.54
A143: 3.1.5 | B143: MOMENTO EXTRAORDINÁRIO DE TRANSP. DE MAT. DE 1ª E/OU 2ª | C143: m3 x km | D143: 399150 | E143: 1.42 | F143: 566793
A144: 3.1.6 | B144: MOMENTO EXTRAORDINÁRIO DE TRANSP. DE MAT. DE 3ª | C144: m3 x km | D144: 53172 | E144: 2.81 | F144: =ROUND(+E144*D144,2) -> 149413.32
A145: 3.1.7 | B145: REVESTIMENTO VEGETAL DE TALUDES | C145: m2 | D145: 5040 | E145: 2.06 | F145: 10382.4
A146: 3.1.8 | B146: COLOCAÇÃO DE MANTA TERMOPLÁSTICA, PEAD, GEOMEMBRANA TEXTURIZADA E=1,00MM, NBR 15352 | C146: m2 | D146: 118324.35 | E146: 6.16 | F146: =ROUND(+E146*D146,2) -> 728878
A147: 3.1.9 | B147: ATERRO COMPACTADO UTILIZANDO SOLO CIMENTO NO TRAÇO 1:20, ABRANGENDO ESPALHAMENTO, HOMOGENEIZAÇÃO, UMEDECIMENTO E COMPACTAÇÃO MECÂNICA LEVE, 5 CM DE ESPESSURA, INCLUSIVE FORNECIMENTO DO MATERIAL PROVENIENTE DE JAZIDA A UMA DISTÂNCIA MÁXIMA DE 10,0 KM | C147: m3 | D147: 5039.23 | E147: 175.83 | F147: =ROUND(+E147*D147,2) -> 886047.81
A148: 3.1.10 | B148: CONCRETO SIMPLES Fck = 15 Mpa, LANÇADO E ADENSADO | C148: m3 | D148: 1702.25 | E148: 348.58 | F148: 593370.31
A149: 3.1.11 | B149: CONFORMACAO GEOMETRICA DE PLATAFORMA PARA EXECUCAO DE REVESTIMENTO PRIMARIO | C149: m2 | D149: 15300 | E149: 0.17 | F149: =ROUND(+E149*D149,2) -> 2601
A150: 3.1.12 | B150: REVESTIMENTO PRIMÁRIO C/ MAT. DE JAZIDA, C/T ATE 1000m | C150: m3 | D150: 3060 | E150: 14.34 | F150: 43880.4
A151: 3.2 | B151: FORNECIMENTO DE MATERIAIS | F151: =SUM(F152) -> 2104990.19
A152: 32.1 | B152: =IF($B152="ORSE",VLOOKUP($C152,[6]orse_ins!#REF!,5,0),IF($B152="SINAPI",VLOOKUP($C152,[6]sinapi_ins!#REF!,2,0),IF($B152="SEINFRA",VLOOKUP($C152,[6]seinfra_ins!#REF!,2,0),""))) -> MANTA TERMOPLASTICA, PEAD, GEOMEMBRANA LISA, E = 1,00 MM ( NBR 15352) | C152: =C146 -> m2 | D152: 118324.35 | E152: 17.79 | F152: =ROUND(+E152*D152,2) -> 2104990.19
A153: 4. | B153: REDES DE PRESSURIZAÇÃO | F153: =F154+F173+F175 -> 7182370.98
A154: 4.1 | B154: OBRAS CIVIS | F154: =SUM(F155:F172) -> 6828568.06
A155: 4.1.1 | B155: LOCAÇÃO DE EIXOS EM GERAL, COM ESTAQUEAMENTO | C155: m | D155: 80387.9 | E155: 1.78 | F155: =ROUND(+E155*D155,2) -> 143090.46
A156: 4.1.2 | B156: DESMATAMENTO E LIMPEZA MECANIZADA DE TERRENO COM ARVORES ATE Ø 15CM, UTILIZANDO TRATOR DE ESTEIRAS | C156: m2 | D156: 1607758 | E156: 0.52 | F156: =ROUND(+E156*D156,2) -> 836034.16
A157: 4.1.2 | B157: LOCAÇÃO DE REDES DE ÁGUA OU DE ESGOTO | C157: m | D157: 80387.9 | E157: 1.29 | F157: =ROUND(+E157*D157,2) -> 103700.39
A158: 4.1.3 | B158: ESCAVAÇÃO MECANIZADA DE VALAS, EM MATERIAL DE 1ª E/OU 2ª CATEGORIA, ATÉ 2m DE PROFUNDIDADE | C158: m3 | D158: 42399.25 | E158: 11.72 | F158: 496919.21
A159: 4.1.4 | B159: ESCAVAÇÃO VALA, MAT. DE 3ª, PROF. ATÉ 2m, C/T ATÉ 1000m | C159: m3 | D159: 12061.84 | E159: 96.25 | F159: 1160952.1
A160: 4.1.5 | B160: ESCAVAÇÃO VALA, MAT. DE 3ª, PROF. 2-4m, C/T ATÉ 1000m | C160: m3 | D160: 30 | E160: 113.8 | F160: =ROUND(+E160*D160,2) -> 3414
A161: 4.1.6 | B161: ATERRO C/COMPACTAÇÃO MANUAL S/CONTROLE, MAT. C/AQUISIÇÃO | C161: m3 | D161: 18490.94 | E161: 83.63 | F161: 1546397.31
A162: 4.1.7 | B162: REATERRO COMPACTADO MECANICAMENTE, S/ CONTROLE | C162: m3 | D162: 27752.52 | E162: 19.34 | F162: 536733.74
A163: 4.1.8 | B163: MOMENTO EXTRAORDINÁRIO DE TRANSP. DE MAT. DE 1ª E/OU 2ª | C163: m3 x km | D163: 740417.6 | E163: 1.42 | F163: 1051392.99
A164: 4.1.9 | B164: MOMENTO EXTRAORDINÁRIO DE TRANSP. DE MAT. DE 3ª | C164: m3 x km | D164: 120918.4 | E164: 2.81 | F164: 339780.7
A165: 4.1.10 | B165: LASTRO DE AREIA ADQUIRIDA | C165: m3 | D165: 4209.04 | E165: 86.89 | F165: 365723.49
A166: 4.1.11 | B166: CONCRETO ESTRUTURAL FCK= 20,0 MPA, LANÇADO E ADENSADO | C166: m3 | D166: 30.71 | E166: 430.31 | F166: 13214.82
A167: 4.1.12 | B167: CONCRETO SIMPLES FCK= 15,0 MPA, LANÇADO E ADENSADO | C167: m3 | D167: 94.06 | E167: 348.58 | F167: 32787.43
A168: 4.1.13 | B168: FORMA PLANA PARA ESTRUTURAS, EM COMPENSADO PLASTIFICADO DE 12MM, 05 USOS, INC LUSIVE ESCORAMENTO - REVISADA 07.2015 | C168: m2 | D168: 62 | E168: 63.03 | F168: 3907.86
A169: 4.1.14 | B169: ARMADURA DE AÇO CA 50/60 - MONTAGEM | C169: kg | D169: 2483.8 | E169: 2.45 | F169: 6085.31
A170: 4.1.15 | B170: ALVENARIA BLOCO CONCRETO ESTRUTURAL 19X19X39CM, FBK 8 MPA, ESP = 0,19M, COM ARGAMASSA TRAÇO T5 - 1:2:8 (CIMENTO/CAL/AREIA), JUNTA 2CM | C170: m2 | D170: 2230.59 | E170: 72.6 | F170: 161940.83
A171: 4.1.16 | B171: DRENO, 25 CM TUBO PVC DN 50 MM, INCLUSIVE MATERIAL DRENANTE (BIDIM E BRITA) - CAIXA DE BRITA ENVOLVIDA POR BIDIM 20x20 CM | C171: un | D171: 206 | E171: 22.35 | F171: 4604.1
A172: 4.1.17 | B172: ESCADA TIPO MARINHEIRO EM ACO CA-50 9,52MM INCLUSO PINTURA COM FUNDO ANTICORROSIVO TIPO ZARCAO | C172: m | D172: 309.3 | E172: 70.77 | F172: 21889.16
A173: 4.2 | B173: FORNECIMENTO DE MATERIAIS | F173: =SUM(F174) -> 14753.77
A174: 4.2.1 | B174: ARMADURA DE AÇO CA 50/60 - FORNECIMENTO DOS MATERIAIS | C174: kg | D174: 2483.8 | E174: 5.94 | F174: =ROUND(+E174*D174,2) -> 14753.77
A175: 4.3 | B175: MONTAGEM DE EQUIPAMENTOS | F175: =SUM(F176:F183) -> 339049.15
A176: 4.3.1 | B176: ASSENTAMENTO DE TUBULAÇÃO PONTA E BOLSA EM PVC OU PRFV OU RPVC OU CPRFV COM CONEXÕES E PEÇAS ESPECIAIS - DN - 100mm, INCLUSIVE CARGA, TRANSPORTE E DESCARGA | C176: m | D176: 15820 | E176: 2.54 | F176: =ROUND(+E176*D176,2) -> 40182.8
A177: 4.3.2 | B177: ASSENTAMENTO DE TUBULAÇÃO PONTA E BOLSA EM PVC OU PRFV OU RPVC OU CPRFV COM CONEXÕES E PEÇAS ESPECIAIS - DN - 150mm, INCLUSIVE CARGA, TRANSPORTE E DESCARGA | C177: m | D177: 12714 | E177: 3.14 | F177: 39921.96
A178: 4.3.3 | B178: ASSENTAMENTO DE TUBULAÇÃO PONTA E BOLSA EM PVC OU PRFV OU RPVC OU CPRFV COM CONEXÕES E PEÇAS ESPECIAIS - DN - 200mm, INCLUSIVE CARGA, TRANSPORTE E DESCARGA | C178: m | D178: 8929 | E178: 3.73 | F178: 33305.17
A179: 4.3.4 | B179: ASSENTAMENTO DE TUBULAÇÃO PONTA E BOLSA EM PVC OU PRFV OU RPVC OU CPRFV COM CONEXÕES E PEÇAS ESPECIAIS - DN - 250mm, INCLUSIVE CARGA, TRANSPORTE E DESCARGA | C179: m | D179: 11195 | E179: 4.34 | F179: 48586.3
A180: 4.3.5 | B180: ASSENTAMENTO DE TUBULAÇÃO PONTA E BOLSA EM PVC OU PRFV OU RPVC OU CPRFV COM CONEXÕES E PEÇAS ESPECIAIS - DN - 300mm, INCLUSIVE CARGA, TRANSPORTE E DESCARGA | C180: m | D180: 9823 | E180: 5.37 | F180: 52749.51
A181: 4.3.6 | B181: ASSENTAMENTO DE TUBULAÇÃO PONTA E BOLSA EM PVC OU PRFV OU RPVC OU CPRFV COM CONEXÕES E PEÇAS ESPECIAIS - DN - 350mm, INCLUSIVE CARGA, TRANSPORTE E DESCARGA | C181: m | D181: 8289 | E181: 5.99 | F181: 49651.11
A182: 4.3.7 | B182: ASSENTAMENTO DE TUBULAÇÃO PONTA E BOLSA EM PVC OU PRFV OU RPVC OU CPRFV COM CONEXÕES E PEÇAS ESPECIAIS - DN - 400mm, INCLUSIVE CARGA, TRANSPORTE E DESCARGA | C182: m | D182: 4050 | E182: 8.28 | F182: 33534
A183: 4.3.8 | B183: ASSENTAMENTO DE TUBULAÇÃO PONTA E BOLSA EM PVC OU PRFV OU RPVC OU CPRFV COM CONEXÕES E PEÇAS ESPECIAIS - DN - 450mm, INCLUSIVE CARGA, TRANSPORTE E DESCARGA | C183: m | D183: 4365 | E183: 9.42 | F183: 41118.3
A184: 5. | B184: TOMADAS PARCELARES DOS LOTES DE PEQUENOS IRRIGANTES | F184: =F185+F198 -> 275918.95
A185: 5.1 | B185: OBRAS CIVIS | F185: =SUM(F186:F197) -> 205379.95
A186: 5.1.1 | B186: ESCAVAÇÃO MECANIZADA DE VALAS, EM MATERIAL DE 1ª E/OU 2ª CATEGORIA, ATÉ 2m DE PROFUNDIDADE | C186: m3 | D186: 132.13 | E186: 11.72 | F186: =ROUND(+E186*D186,2) -> 1548.56
A187: 5.1.2 | B187: ESCAVAÇÃO VALA, MAT. DE 3ª, PROF. ATÉ 2m, C/T ATÉ 1000m | C187: m3 | D187: 84.94 | E187: 96.25 | F187: 8175.48
A188: 5.1.3 | B188: ATERRO C/COMPACTAÇÃO MANUAL S/CONTROLE, MAT. C/AQUISIÇÃO | C188: m3 | D188: 113.25 | E188: 83.63 | F188: 9471.1
A189: 5.1.4 | B189: MOMENTO EXTRAORDINÁRIO DE TRANSP. DE MAT. DE 1ª E/OU 2ª | C189: m3 x km | D189: 566.25 | E189: 1.42 | F189: 804.08
A190: 5.1.5 | B190: MOMENTO EXTRAORDINÁRIO DE TRANSP. DE MAT. DE 3ª | C190: m3 x km | D190: 849.4 | E190: 2.81 | F190: =ROUND(+E190*D190,2) -> 2386.81
A191: 5.1.6 | B191: CONCRETO ESTRUTURAL FCK= 20,0 MPA, LANÇADO E ADENSADO | C191: m3 | D191: 47.19 | E191: 430.31 | F191: 20306.33
A192: 5.1.7 | B192: CONCRETO SIMPLES FCK= 15,0 MPA, LANÇADO E ADENSADO | C192: m3 | D192: 73 | E192: 348.58 | F192: 25446.34
A193: 5.1.8 | B193: AÇO ESPECIAL CA-50/60 - FONECIMENTO DOS MATERIAIS | C193: kg | D193: 3303.13 | E193: 5.94 | F193: 19620.59
A194: 5.1.9 | B194: AÇO ESPECIAL CA-50/60 - MONTAGEM E INSTALAÇÃO | C194: kg | D194: 3303.13 | E194: 2.45 | F194: 8092.67
A195: 5.1.10 | B195: FORMA PLANA PARA ESTRUTURAS, EM COMPENSADO PLASTIFICADO DE 12MM, 05 USOS, EXC LUSIVE ESCORAMENTO - REVISADA 07.2015 | C195: m2 | D195: 849.38 | E195: 36.95 | F195: 31384.59
A196: 5.1.11 | B196: ALVENARIA DE BLOCOS DE CONCRETO - 14x19x39cm | C196: m2 | D196: 984 | E196: 72.6 | F196: 71438.4
A197: 5.1.12 | B197: DRENO, 25 CM TUBO PVC DN 50 MM, INCLUSIVE MATERIAL DRENANTE (BIDIM E BRITA) - CAIXA DE BRITA ENVOLVIDA POR BIDIM 20x20 CM | C197: un | D197: 300 | E197: 22.35 | F197: 6705
A198: 5.2 | B198: MONTAGEM DE EQUIPAMENTOS | F198: =SUM(F199:F199) -> 70539
A199: 5.2.1 | B199: MONTAGEM DE TOMADA PARCELAR | C199: un | D199: 300 | E199: 235.13 | F199: =ROUND(+E199*D199,2) -> 70539
A200: 6. | B200: REDE DE DRENAGEM | F200: =F201+F225 -> 4623321.44
A201: 6.1 | B201: OBRAS CIVIS | F201: =F202+F211 -> 3650456.5
A202: 6.1.1 | B202: REDE PRINCIPAL | F202: =SUM(F203:F210) -> 2566510.06
... 34 more rows
